Workbook

Sheet SUBESTACION
A1: SUBESTACION | B1: LABORATORIOS MECÁNICA
A2: CONTIENE | B2: MEMORIAS DE CALCULO
A3: TABLERO T GEN (TABLERO GENERAL) | B3: DENOMINACION | C3: CARGA TOTAL | D3: DEMANDA | E3: F.P | F3: I (A) | G3: PROTECCION | H3: ALIMENTADOR | I3: LONGITUD | J3: R | K3: Reg | L3: PERDIDAS
A4: UBICACIÓN | C4: VA | D4: VA | G4: TRIPOLAR (A) | H4: CONDUCTORES DE COBRE | I4: (M) | J4: Ω/KM | K4: % | L4: VATIOS
A5: TABLERO GENERAL
A6: ='TAB CORROSION'!V36 -> LABORATORIO DE CORROSIÓN | B6: ='TAB CORROSION'!W36 -> T. CORR | C6: ='TAB CORROSION'!X36 -> 9918 | D6: ='TAB CORROSION'!Y36 -> 5347 | E6: ='TAB CORROSION'!Z36 -> 0.95 | F6: ='TAB CORROSION'!AA36 -> 15.62339296 | G6: ='TAB CORROSION'!AB36 -> 20 | H6: ='TAB CORROSION'!AC36 -> 5H CABLE CU No 10 THHN | I6: ='TAB CORROSION'!AD36 -> 20 | J6: ='TAB CORROSION'!AE36 -> 3.61 | K6: ='TAB CORROSION'!AF36 -> 0.8880506993 | L6: ='TAB CORROSION'!AG36 -> 52.86998225
A7: ='TAB METALOGRAFÍA'!V58 -> LABORATORIO DE METALOGRAFÍA | B7: ='TAB METALOGRAFÍA'!W58 -> T. MET | C7: ='TAB METALOGRAFÍA'!X58 -> 52358 | D7: ='TAB METALOGRAFÍA'!Y58 -> 26707 | E7: ='TAB METALOGRAFÍA'!Z58 -> 0.95 | F7: ='TAB METALOGRAFÍA'!AA58 -> 78.03515161 | G7: ='TAB METALOGRAFÍA'!AB58 -> 90 | H7: ='TAB METALOGRAFÍA'!AC58 -> 5H CABLE CU No 2 THHN | I7: ='TAB METALOGRAFÍA'!AD58 -> 25 | J7: ='TAB METALOGRAFÍA'!AE58 -> 0.623 | K7: ='TAB METALOGRAFÍA'!AF58 -> 0.9568492938 | L7: ='TAB METALOGRAFÍA'!AG58 -> 284.5311813
A8: ='TAB MODELOS'!V37 -> LABORATORIO DE MODELOS | B8: ='TAB MODELOS'!W37 -> T. MOD | C8: ='TAB MODELOS'!X37 -> 10484 | D8: ='TAB MODELOS'!Y37 -> 5682 | E8: ='TAB MODELOS'!Z37 -> 0.95 | F8: ='TAB MODELOS'!AA37 -> 16.60222906 | G8: ='TAB MODELOS'!AB37 -> 30 | H8: ='TAB MODELOS'!AC37 -> 5H CABLE CU No 8 THHN | I8: ='TAB MODELOS'!AD37 -> 30 | J8: ='TAB MODELOS'!AE37 -> 2.26 | K8: ='TAB MODELOS'!AF37 -> 0.8861786897 | L8: ='TAB MODELOS'!AG37 -> 56.06395757
A9: TOTAL | C9: =SUM(C6:C8) -> 72760 | D9: =SUM(D6:D8) -> 37736 | E9: 0.95 | F9: =+D9/(208*1.732*E9)/2 -> 55.13038681 | G9: 70 | H9: 5H CABLE CU No 6 THHN | I9: 30 | J9: 1.44 | K9: =+(F9*I9*J9*1.732*100)/(1000*220) -> 1.874994479 | L9: =3*J9*I9*F9*F9/1000 -> 393.9009977
A12: SE REQUIERE TRANSFORMADOR DE 150 KVA 220V/208V TRIFÁSICO CONVENCIONAL EN ACEITE
A15: SE REQUIERE PLANTA DE EMERGENCIA DE 150 KVA 220V TRIFASICA

Sheet TAB CORROSION
A1: TABLERO COMPRESORES CORROSIÓN
A3: TABLERO: COMPRESORES
A4: CTO | G4: TOMAS | J4: TRIFASICO | L4: POTENCIA | M4: CALIBRE | N4: PROTECC.(AMPS.) | Q4: FASES | T4: DESCRIPCIÓN
B5: 18w | C5: 2X22w | D5: 40w | E5: 50w | F5: 63w | G5: 110V | H5: 220V | I5: OTRO | J5: 220V | K5: 440V | L5: VA | M5: AWG | N5: 1X | O5: 2X | P5: 3X | Q5: F1 | R5: F2 | S5: F3
A6: 1'-3' | L6: 3000 | M6: 12 | O6: 20 | Q6: =+L6/220 -> 13.63636364 | S6: =Q6 -> 13.63636364 | T6: COMPRESOR BIFÁSICO
A7: 2'-4'-6' | G7: 6 | L7: 3000 | M7: 12 | P7: 20 | Q7: =R7 -> 13.63636364 | R7: =+L7/220 -> 13.63636364 | S7: =R7 -> 13.63636364 | T7: COMPRESOR TRIFÁSICO
A8: 5' | L8: =+B8*18+C8*2*22+D8*45+E8*63+F8*100+G8*180+H8*1*746+I8+J8*2*746+K8 -> 0 | M8: 12 | N8: 20 | R8: =+L8/120 -> 0 | T8: Reserva
A9: 7' | B9: 2 | C9: 8 | L9: =+B9*18+C9*2*22+D9*45+E9*63+F9*100+G9*180+H9*1*746+I9+J9*2*746+K9 -> 388 | M9: 14 | N9: 20 | Q9: =+L9/120 -> 3.233333333 | T9: Iluminación Corrosión
A10: 8' | G10: 6 | L10: =+B10*18+C10*2*22+D10*45+E10*63+F10*100+G10*180+H10*1*746+I10+J10*2*746+K10 -> 1080 | M10: 12 | N10: 20 | R10: =+L10/120 -> 9 | T10: Tomacorrientes área cámara salina
A11: 9' | L11: =+B11*18+C11*2*22+D11*45+E11*63+F11*100+G11*180+H11*1*746+I11+J11*2*746+K11 -> 0 | M11: 12 | N11: 20 | S11: =+L11/120 -> 0 | T11: Reserva
A12: 10' | G12: 5 | L12: =+B12*18+C12*2*22+D12*45+E12*63+F12*100+G12*180+H12*1*746+I12+J12*2*746+K12 -> 900 | M12: 12 | N12: 20 | Q12: =+L12/120 -> 7.5 | T12: Tomacorrientes área general
A13: 11' | L13: 50 | M13: 12 | N13: 20 | R13: =+L13/120 -> 0.4166666667 | T13: Extractor
A14: 12'-14' | L14: 1500 | M14: 10 | O14: 20 | R14: =S14 -> 6.818181818 | S14: =+L14/220 -> 6.818181818 | T14: Mini Split
A15: 13' | L15: =+B15*18+C15*2*22+D15*45+E15*63+F15*100+G15*180+H15*1*746+I15+J15*2*746+K15 -> 0 | M15: 12 | N15: 20 | Q15: =+L15/120 -> 0 | T15: Reserva
A16: 15' | L16: 0 | M16: 12 | N16: 20 | S16: =+L16/120 -> 0 | T16: Reserva
A17: 16' | Q17: =+L17/120 -> 0 | T17: Reserva
A18: 17' | R18: =+L18/120 -> 0 | T18: Reserva
A19: 18' | S19: =+L19/120 -> 0 | T19: Reserva
A21: SUBTOTAL | L21: =SUM(L6:L20) -> 9918 | Q21: =SUM(Q6:Q20) -> 38.00606061 | R21: =SUM(R6:R20) -> 29.87121212 | S21: =SUM(S6:S20) -> 34.09090909
G23: CALCULO DE LA DEMANDA PARCIAL
C24: SUBTOTAL ILUMINACION | H24: =L9 -> 388 | L24: AL | M24: 1 | N24: =+H24*M24 -> 388
C25: SUBTOTAL TOMACORRIENTES | H25: =L21 -> 9918 | L25: AL | M25: 0.5 | N25: =+H25*M25 -> 4959
C26: SUBTOTAL TOMACORRIENTES ESPECIALES | H26: 0 | L26: AL | M26: 0 | N26: =+H26*M26 -> 0
C27: TOTAL DEMANDA | N27: =SUM(N24:N26) -> 5347
V30: PROYECTO | W30: =A1 -> TABLERO COMPRESORES CORROSIÓN
V31: CONTIENE | W31: TAB CORR
V33: TABLERO | W33: DENOMINACION | X33: CARGA TOTAL | Y33: DEMANDA | Z33: F.P | AA33: I (A) | AB33: PROTECCION | AC33: ALIMENTADOR | AD33: LONGITUD | AE33: RESISTENCIA | AF33: REGULACION | AG33: PERDIDAS
V34: UBICACIÓN | X34: VA | Y34: VA | AB34: TRIPOLAR (A) | AC34: CONDUCTORES DE COBRE | AD34: (M) | AE34: OHMIOS /KM | AF34: PORCENTAJE | AG34: VATIOS
V35: LABORATORIO DE CORROSIÓN | W35: T. CORR | X35: =L21 -> 9918 | Y35: =N27 -> 5347 | Z35: 0.95 | AA35: =+Y35/(208*1.732*Z35) -> 15.62339296 | AB35: 20 | AC35: ="5H CABLE CU No "&VLOOKUP(AE35,'CONSTANTES K'!$I$6:$J$16,2,FALSE)&" THHN" -> 5H CABLE CU No 10 THHN | AD35: 20 | AE35: 3.61 | AF35: =+(AA35*AD35*AE35*1.732*100)/(1000*220) -> 0.8880506993 | AG35: =3*AE35*AD35*AA35*AA35/1000 -> 52.86998225
V36: =V35 -> LABORATORIO DE CORROSIÓN | W36: =W35 -> T. CORR | X36: =SUM(X35:X35) -> 9918 | Y36: =SUM(Y35:Y35) -> 5347 | Z36: 0.95 | AA36: =+Y36/(208*1.732*Z36) -> 15.62339296 | AB36: 20 | AC36: ="5H CABLE CU No "&VLOOKUP(AE36,'CONSTANTES K'!$I$6:$J$16,2,FALSE)&" THHN" -> 5H CABLE CU No 10 THHN | AD36: =AD35 -> 20 | AE36: 3.61 | AF36: =+(AA36*AD36*AE36*1.732*100)/(1000*220) -> 0.8880506993 | AG36: =3*AE36*AD36*AA36*AA36/1000 -> 52.86998225

Sheet TAB METALOGRAFÍA
A1: TABLERO HORNOS
A3: TABLERO: METALOGRAFÍA
A4: CTO | G4: TOMAS | J4: TRIFASICO | L4: POTENCIA | M4: CALIBRE | N4: PROTECC.(AMPS.) | Q4: FASES | T4: DESCRIPCIÓN
B5: 18w | C5: 2X22w | D5: 40w | E5: 50w | F5: 63w | G5: 110V | H5: 220V | I5: OTRO | J5: 220V | K5: 440V | L5: VA | M5: AWG | N5: 1X | O5: 2X | P5: 3X | Q5: F1 | R5: F2 | S5: F3
A6: 1'-3' | L6: 2800 | M6: 8 | O6: 20 | Q6: =+L6/220 -> 12.72727273 | S6: =Q6 -> 12.72727273 | T6: HORNO 1
A7: 2'-4 | L7: 4400 | M7: 8 | O7: 30 | Q7: =R7 -> 20 | R7: =+L7/220 -> 20 | S7: =R7 -> 20 | T7: HORNO 2
A8: 5'-7' | L8: 7000 | M8: 8 | O8: 40 | Q8: =R8 -> 31.81818182 | R8: =+L8/220 -> 31.81818182 | T8: HORNO 3
A9: 6'-8' | L9: 7000 | M9: 8 | O9: 40 | R9: =S9 -> 31.81818182 | S9: =+L9/220 -> 31.81818182 | T9: HORNO 4
A10: 9'-11' | L10: 7000 | M10: 8 | O10: 40 | R10: =S10 -> 31.81818182 | S10: =+L10/220 -> 31.81818182 | T10: HORNO 5
A11: 10' | L11: =+B11*18+C11*2*22+D11*45+E11*63+F11*100+G11*180+H11*1*746+I11+J11*2*746+K11 -> 0 | M11: 12 | Q11: =+L11/120 -> 0 | T11: Reserva
A12: 12' | Q12: =+L12/120 -> 0 | T12: Reserva
A14: SUBTOTAL | L14: =SUM(L6:L13) -> 28200 | Q14: =SUM(Q6:Q13) -> 64.54545455 | R14: =SUM(R6:R13) -> 115.4545455 | S14: =SUM(S6:S13) -> 96.36363636
G16: CALCULO DE LA DEMANDA PARCIAL
C17: SUBTOTAL ILUMINACION | L17: AL | M17: 1 | N17: =+H17*M17 -> 0
C18: SUBTOTAL TOMACORRIENTES | H18: =L14 -> 28200 | L18: AL | M18: 0.5 | N18: =+H18*M18 -> 14100
C19: SUBTOTAL TOMACORRIENTES ESPECIALES | H19: 0 | L19: AL | M19: 0 | N19: =+H19*M19 -> 0
C20: TOTAL DEMANDA | N20: =SUM(N17:N19) -> 14100
A23: TABLERO METALOGRAFÍA
A25: TABLERO: METALOGRAFÍA
A26: CTO | G26: TOMAS | J26: TRIFASICO | L26: POTENCIA | M26: CALIBRE | N26: PROTECC.(AMPS.) | Q26: FASES | T26: DESCRIPCIÓN
B27: 18w | C27: 2X22w | D27: 40w | E27: 50w | F27: 63w | G27: 110V | H27: 220V | I27: OTRO | J27: 220V | K27: 440V | L27: VA | M27: AWG | N27: 1X | O27: 2X | P27: 3X | Q27: F1 | R27: F2 | S27: F3
A28: 1' | C28: 12 | L28: =+B28*18+C28*2*22+D28*45+E28*63+F28*100+G28*180+H28*1*746+I28+J28*2*746+K28 -> 528 | M28: 14 | N28: 20 | Q28: =+L28/120 -> 4.4 | T28: Iluminación Metalografía
A29: 2' | G29: 6 | L29: 1080 | M29: 12 | N29: 20 | R29: =+L29/120 -> 9 | T29: Tomacorrientes Área cortadora
A30: 3' | L30: 0 | M30: 12 | N30: 20 | S30: =+L30/120 -> 0 | T30: Reserva
A31: 4' | G31: 10 | L31: 1800 | M31: 12 | N31: 20 | Q31: =+L31/120 -> 15 | T31: Tomacorrientes área anexa
A32: 5'-7' | L32: 2500 | M32: 12 | O32: 20 | R32: =+L32/220 -> 11.36363636 | T32: Pulidora metalográfica
A33: 6' | L33: 0 | M33: 12 | N33: 20 | S33: =+L33/120 -> 0 | T33: Reserva
A34: 8'-10' | L34: 250 | M34: 12 | O34: 20 | Q34: =R34 -> 1.136363636 | R34: =+L34/220 -> 1.136363636 | T34: Extractor
A35: 9'-11' | L35: 1500 | M35: 12 | O35: 20 | R35: =S35 -> 12.5 | S35: =+L35/120 -> 12.5 | T35: Mini Split
A36: 12'-14'-16' | L36: =L14 -> 28200 | M36: 12 | P36: 150 | Q36: =+L36/220 -> 128.1818182 | R36: =Q36 -> 128.1818182 | S36: =Q36 -> 128.1818182 | T36: Tablero Hornos
A37: 13'-15' | L37: 3000 | M37: 12 | O37: 20 | Q37: =L37/220 -> 13.63636364 | S37: =Q37 -> 13.63636364 | T37: Pulidora fina
A38: 17'-19' | L38: 3000 | M38: 12 | O38: 20 | Q38: =R38 -> 13.63636364 | R38: =+L38/220 -> 13.63636364 | T38: Reserva
A39: 18'-20' | L39: 3000 | M39: 12 | O39: 20 | R39: =S39 -> 13.63636364 | S39: =L39/220 -> 13.63636364 | T39: Reserva
A40: 21'-23' | L40: 3000 | M40: 12 | O40: 20 | S40: =L40/220 -> 13.63636364 | T40: Reserva
A41: 22'-24' | L41: 4500 | M41: 12 | O41: 20 | Q41: =L41/220 -> 20.45454545 | T41: Cortadora metalográfica
A43: SUBTOTAL | L43: =SUM(L28:L42) -> 52358 | Q43: =SUM(Q28:Q42) -> 196.4454545 | R43: =SUM(R28:R42) -> 189.4545455 | S43: =SUM(S28:S42) -> 181.5909091
G45: CALCULO DE LA DEMANDA PARCIAL
C46: SUBTOTAL ILUMINACION | H46: =L28 -> 528 | L46: AL | M46: 1 | N46: =+H46*M46 -> 528
C47: SUBTOTAL TOMACORRIENTES | H47: =L43 -> 52358 | L47: AL | M47: 0.5 | N47: =+H47*M47 -> 26179
C48: SUBTOTAL TOMACORRIENTES ESPECIALES | H48: 0 | L48: AL | M48: 0 | N48: =+H48*M48 -> 0
C49: TOTAL DEMANDA | N49: =SUM(N46:N48) -> 26707
V52: PROYECTO | W52: METALOGRAFÍA
V53: CONTIENE | W53: TAB MET
V55: TABLERO | W55: DENOMINACION | X55: CARGA TOTAL | Y55: DEMANDA | Z55: F.P | AA55: I (A) | AB55: PROTECCION | AC55: ALIMENTADOR | AD55: LONGITUD | AE55: RESISTENCIA | AF55: REGULACION | AG55: PERDIDAS
V56: UBICACIÓN | X56: VA | Y56: VA | AB56: TRIPOLAR (A) | AC56: CONDUCTORES DE COBRE | AD56: (M) | AE56: OHMIOS /KM | AF56: PORCENTAJE | AG56: VATIOS
V57: LABORATORIO DE METALOGRAFÍA | W57: T. MET | X57: =L43 -> 52358 | Y57: =N49 -> 26707 | Z57: 0.95 | AA57: =+Y57/(208*1.732*Z57) -> 78.03515161 | AB57: 90 | AC57: ="5H CABLE CU No "&VLOOKUP(AE57,'CONSTANTES K'!$I$6:$J$16,2,FALSE)&" THHN" -> 5H CABLE CU No 2 THHN | AD57: 25 | AE57: 0.623 | AF57: =+(AA57*AD57*AE57*1.732*100)/(1000*220) -> 0.9568492938 | AG57: =3*AE57*AD57*AA57*AA57/1000 -> 284.5311813
V58: =V57 -> LABORATORIO DE METALOGRAFÍA | W58: =W57 -> T. MET | X58: =SUM(X57:X57) -> 52358 | Y58: =SUM(Y57:Y57) -> 26707 | Z58: 0.95 | AA58: =+Y58/(208*1.732*Z58) -> 78.03515161 | AB58: 90 | AC58: ="5H CABLE CU No "&VLOOKUP(AE58,'CONSTANTES K'!$I$6:$J$16,2,FALSE)&" THHN" -> 5H CABLE CU No 2 THHN | AD58: 25 | AE58: 0.623 | AF58: =+(AA58*AD58*AE58*1.732*100)/(1000*220) -> 0.9568492938 | AG58: =3*AE58*AD58*AA58*AA58/1000 -> 284.5311813

Sheet TAB MODELOS
A1: TABLERO MODELOS
A3: TABLERO: COMPRESORES
A4: CTO | G4: TOMAS | J4: TRIFASICO | L4: POTENCIA | M4: CALIBRE | N4: PROTECC.(AMPS.) | Q4: FASES | T4: DESCRIPCIÓN
B5: 18w | C5: 2X22w | D5: 40w | E5: 50w | F5: 63w | G5: 110V | H5: 220V | I5: OTRO | J5: 220V | K5: 440V | L5: VA | M5: AWG | N5: 1X | O5: 2X | P5: 3X | Q5: F1 | R5: F2 | S5: F3
A6: 1' | L6: =+B6*18+C6*2*22+D6*45+E6*63+F6*100+G6*180+H6*1*746+I6+J6*2*746+K6 -> 0 | M6: 14 | N6: 20 | Q6: =+L6/120 -> 0 | T6: Reserva
A7: 2' | G7: 7 | L7: 1260 | M7: 12 | N7: 20 | R7: =+L7/120 -> 10.5 | T7: Tomacorrientes equipos pc
A8: 3' | C8: 10 | L8: 440 | M8: 12 | N8: 20 | S8: =+L8/120 -> 3.666666667 | T8: Iluminación Modelos
A9: 4' | G9: 4 | L9: 720 | M9: 12 | N9: 20 | Q9: =+L9/120 -> 6 | T9: Tomacorrientes impresoras 3D
A10: 5' | L10: =+B10*18+C10*2*22+D10*45+E10*63+F10*100+G10*180+H10*1*746+I10+J10*2*746+K10 -> 0 | M10: 12 | N10: 20 | R10: =+L10/120 -> 0 | T10: Reserva
A11: 6' | G11: 5 | L11: =+B11*18+C11*2*22+D11*45+E11*63+F11*100+G11*180+H11*1*746+I11+J11*2*746+K11 -> 900 | M11: 12 | N11: 20 | S11: =+L11/120 -> 7.5 | T11: Tomacorrientes Bodega
A12: 7'-9' | H12: 1 | L12: 500 | M12: 14 | O12: 20 | Q12: =+L12/220 -> 2.272727273 | S12: =Q12 -> 2.272727273 | T12: Cortadora Láser
A13: 8' | G13: 6 | L13: =+B13*18+C13*2*22+D13*45+E13*63+F13*100+G13*180+H13*1*746+I13+J13*2*746+K13 -> 1080 | M13: 12 | N13: 20 | R13: =+L13/120 -> 9 | T13: Reserva
A14: 10' | G14: 5 | L14: =+B14*18+C14*2*22+D14*45+E14*63+F14*100+G14*180+H14*1*746+I14+J14*2*746+K14 -> 900 | M14: 12 | N14: 20 | Q14: =+L14/120 -> 7.5 | T14: Reserva
A15: 11' | G15: 1 | L15: 200 | M15: 12 | N15: 20 | R15: =+L15/120 -> 1.666666667 | T15: Extractor
A16: 12'-14' | H16: 1 | L16: 1500 | M16: 10 | O16: 20 | R16: =S16 -> 6.818181818 | S16: =+L16/220 -> 6.818181818 | T16: Mini Split
A17: 13'-15' | H17: 4 | L17: =+B17*18+C17*2*22+D17*45+E17*63+F17*100+G17*180+H17*1*746+I17+J17*2*746+K17 -> 2984 | M17: 12 | O17: 20 | Q17: =+L17/220 -> 13.56363636 | S17: =Q17 -> 13.56363636 | T17: Tomas 220 V mesa de trabajo
A18: 16' | L18: =+B18*18+C18*2*22+D18*45+E18*63+F18*100+G18*180+H18*1*746+I18+J18*2*746+K18 -> 0 | M18: 12 | N18: 20 | Q18: =+L18/120 -> 0 | T18: Reserva
A19: 17' | L19: 0 | M19: 12 | N19: 20 | R19: =+L19/120 -> 0 | T19: Reserva
A20: 18' | L20: 0 | M20: 12 | N20: 20 | S20: =+L20/120 -> 0 | T20: Reserva
A22: SUBTOTAL | L22: =SUM(L6:L21) -> 10484 | Q22: =SUM(Q10:Q21) -> 23.33636364 | R22: =SUM(R10:R21) -> 17.48484848 | S22: =SUM(S10:S21) -> 30.15454545
G24: CALCULO DE LA DEMANDA PARCIAL
C25: SUBTOTAL ILUMINACION | H25: =L8 -> 440 | L25: AL | M25: 1 | N25: =+H25*M25 -> 440
C26: SUBTOTAL TOMACORRIENTES | H26: =L22 -> 10484 | L26: AL | M26: 0.5 | N26: =+H26*M26 -> 5242
C27: SUBTOTAL TOMACORRIENTES ESPECIALES | H27: 0 | L27: AL | M27: 0 | N27: =+H27*M27 -> 0
C28: TOTAL DEMANDA | N28: =SUM(N25:N27) -> 5682
V31: PROYECTO | W31: =A1 -> TABLERO MODELOS
V32: CONTIENE | W32: TAB MOD
V34: TABLERO | W34: DENOMINACION | X34: CARGA TOTAL | Y34: DEMANDA | Z34: F.P | AA34: I (A) | AB34: PROTECCION | AC34: ALIMENTADOR | AD34: LONGITUD | AE34: RESISTENCIA | AF34: REGULACION | AG34: PERDIDAS
V35: UBICACIÓN | X35: VA | Y35: VA | AB35: TRIPOLAR (A) | AC35: CONDUCTORES DE COBRE | AD35: (M) | AE35: OHMIOS /KM | AF35: PORCENTAJE | AG35: VATIOS
V36: LABORATORIO DE MODELOS | W36: T. MOD | X36: =L22 -> 10484 | Y36: =N28 -> 5682 | Z36: 0.95 | AA36: =+Y36/(208*1.732*Z36) -> 16.60222906 | AB36: 30 | AC36: ="5H CABLE CU No "&VLOOKUP(AE36,'CONSTANTES K'!$I$6:$J$16,2,FALSE)&" THHN" -> 5H CABLE CU No 8 THHN | AD36: 30 | AE36: 2.26 | AF36: =+(AA36*AD36*AE36*1.732*100)/(1000*220) -> 0.8861786897 | AG36: =3*AE36*AD36*AA36*AA36/1000 -> 56.06395757
V37: =V36 -> LABORATORIO DE MODELOS | W37: =W36 -> T. MOD | X37: =SUM(X36:X36) -> 10484 | Y37: =SUM(Y36:Y36) -> 5682 | Z37: 0.95 | AA37: =+Y37/(208*1.732*Z37) -> 16.60222906 | AB37: 30 | AC37: ="5H CABLE CU No "&VLOOKUP(AE37,'CONSTANTES K'!$I$6:$J$16,2,FALSE)&" THHN" -> 5H CABLE CU No 8 THHN | AD37: =AD36 -> 30 | AE37: 2.26 | AF37: =+(AA37*AD37*AE37*1.732*100)/(1000*220) -> 0.8861786897 | AG37: =3*AE37*AD37*AA37*AA37/1000 -> 56.06395757

Sheet UTILI DUCTOS
A1: CALCULO DE AREA UTILIZADA POR CONDUCTORES ELECTRICOS
A3: ITEM | B3: CONDUCTOR | C3: AREA DE SECCION mm2 | D3: DIAMETRO EXT. (mm) | E3: R (ohm/1000pie) | F3: R (Ohm/km)
A5: 1 | B5: ALAMBRE DE COBRE No 12 | C5: =0.785398*D5*D5 -> 7.793111655 | D5: 3.15 | E5: 2.05 | F5: =E5/0.3048 -> 6.725721785
A6: 2 | B6: ALAMBRE DE COBRE No 10 | C6: =0.785398*D6*D6 -> 12.2541723 | D6: 3.95 | E6: 1.29 | F6: =E6/0.3048 -> 4.232283465
A7: 3 | B7: ALAMBRE DE COBRE No 8 | C7: 21.23716192 | D7: 5.2 | E7: 0.81 | F7: 2.657480315
A8: 4 | B8: CABLE DE COBRE No 8 | C8: 24.0181777 | D8: 5.53 | E8: 0.81 | F8: 2.657480315
A9: 5 | B9: CABLE DE COBRE No 6 | C9: 32.87746714 | D9: 6.47 | E9: 0.51 | F9: 1.673228346
A10: 6 | B10: CABLE DE COBRE No 4 | C10: 53.19728419 | D10: 8.23 | E10: 0.321 | F10: 1.053149606
A11: 7 | B11: CABLE DE COBRE No 2 | C11: 74.2031464 | D11: 9.72 | E11: 0.201 | F11: 0.6594488189
A12: 8 | B12: CABLE DE COBRE No 1/0 | C12: 113.6635054 | D12: 12.03 | E12: 0.127 | F12: 0.4166666667
A13: 9 | B13: CABLE DE COBRE No 2/0 | C13: 135.1940135 | D13: 13.12 | E13: 0.101 | F13: 0.3313648294
A14: 10 | B14: CABLE DE COBRE No 4/0 | C14: 194.5804695 | D14: 15.74 | E14: 0.0626 | F14: 0.2053805774
A16: 11 | B16: CABLE XLPE 15 KV 133% 1/0 | C16: 593.9572375 | D16: 27.5
A17: 12 | B17: CABLE FLEXIBLE ST 2No 12 | C17: 164.6747128 | D17: 14.48
A18: 13 | B18: CABLE FLEXIBLE ST 3No 12 | C18: 181.9361901 | D18: 15.22
A21: RED SUBTERRANEA PARA BAJA TENSION CABLE DE COBRE THHN
A23: CONDUCTOR | B23: KV | C23: MATERIAL | D23: SISTEMA | E23: R (OH/KM) | F23: Xl(OH/KM) | G23: CONSTANTE K | H23: In (A)
A25: 2 | B25: 0,208-120 | C25: Cu | D25: TRIFASICO 4 H | E25: 0.58578 | F25: 0.11977 | G25: 0.0013076 | H25: 115
A26: 1/0 | B26: 0,208-120 | C26: Cu | D26: TRIFASICO 4 H | E26: 0.36836 | F26: 0.11758 | G26: 0.000864 | H26: 150
A27: 2/0 | B27: 0,208-120 | C27: Cu | D27: TRIFASICO 4 H | E27: 0.29215 | F27: 0.11507 | G27: 0.0007092 | H27: 175
A31: CALCULO DE AREA UTILIZADA POR CONDUTORES ELECTRICOS
A33: ITEM | B33: DUCTO | C33: AREA DE SECCION mm2 | D33: DIAMETRO
A34: 1 | B34: CONDUIT PVC DIAM 1/2 | C34: =0.785398*D34*D34 -> 126.6768434 | D34: 12.7
A35: 2 | B35: CONDUIT PVC DIAM 3/4 | C35: 285.0228977 | D35: 19.05
A36: 3 | B36: CONDUIT PVC DIAM 1 | C36: 506.7073737 | D36: 25.4
A37: 4 | B37: CONDUIT PVC DIAM 1 1/2 | C37: 1140.091591 | D37: 38.1
A38: 5 | B38: DUCTO ELECTRICO PVC DIAM 2" | C38: 2026.829495 | D38: 50.8
A39: 6 | B39: DUCTO ELECTRICO PVC DIAM 3 | C39: 4560.366363 | D39: 76.2
A40: 7 | B40: DUCTO ELECTRICO PVC DIAM 4 | C40: 8107.317979 | D40: 101.6
A43: CALCULO DE UTILIZACIO DE DUCTOS
A44: CONDUCTOR | B44: AREA DE SECCION | C44: No DE COND | D44: TOTA AREA OCUPADA
A46: =+B14 -> CABLE DE COBRE No 4/0 | B46: =+C14 -> 194.5804695 | C46: 8 | D46: =+B46*C46 -> 1556.643756
A48: AREA DEL DUCTO DEL TRAMO
A50: =+B39 -> DUCTO ELECTRICO PVC DIAM 3 | B50: =+C39 -> 4560.366363
A52: PORCENTAJE DE OCUPACION DEL DUCTO | D52: =+D46/B50 -> 0.3413418205

Sheet CONSTANTES K
C4: Resistencia a corriente alterna R (ohm/km) | F4: Reactancia Inductiva XL (ohm/km) | H4: PESO Kg/m | I4: Zeficaz FP=0.85
B5: Calibre AWG / kcmil | C5: Conduit de PVC | D5: Conduit de Aluminio | E5: Conduit de Acero | F5: Conduit de PVC o Aluminio | G5: Conduit de Acero
B6: 14 | C6: 10.17 | D6: 10.17 | E6: 10.17 | F6: 0.19 | G6: 0.24 | H6: 0.0245 | I6: 8.86 | J6: 14
B7: 12 | C7: 6.56 | D7: 6.56 | E7: 6.56 | F7: 0.177 | G7: 0.223 | H7: 0.0369 | I7: 5.58 | J7: 12
B8: 10 | C8: 3.94 | D8: 3.94 | E8: 3.94 | F8: 0.164 | G8: 0.207 | H8: 0.0586 | I8: 3.61 | J8: 10
B9: 8 | C9: 2.56 | D9: 2.56 | E9: 2.56 | F9: 0.171 | G9: 0.213 | H9: 0.0957 | I9: 2.26 | J9: 8
B10: 6 | C10: 1.61 | D10: 1.61 | E10: 1.61 | F10: 0.167 | G10: 0.21 | H10: 0.145 | I10: 1.44 | J10: 6
B11: 4 | C11: 1.02 | D11: 1.02 | E11: 1.02 | F11: 0.157 | G11: 0.197 | H11: 0.232 | I11: 0.951 | J11: 4
B12: 2 | C12: 0.623 | D12: 0.656 | E12: 0.656 | F12: 0.148 | G12: 0.187 | H12: 0.356 | I12: 0.623 | J12: 2
B13: 1/0 | C13: 0.394 | D13: 0.427 | E13: 0.427 | F13: 0.144 | G13: 0.18 | H13: 0.556 | I13: 0.427 | J13: 1/0
B14: 2/0 | C14: 0.328 | D14: 0.328 | E14: 0.328 | F14: 0.141 | G14: 0.177 | H14: 0.691 | I14: 0.361 | J14: 2/0
B15: 3/0 | C15: 0.253 | D15: 0.269 | E15: 0.259 | F15: 0.138 | G15: 0.171 | H15: 0.86 | I15: 0.289 | J15: 3/0
B16: 4/0 | C16: 0.203 | D16: 0.219 | E16: 0.207 | F16: 0.135 | G16: 0.167 | H16: 1.072 | I16: 0.243 | J16: 4/0
B17: 250 | H17: 1.278
B18: 300 | H18: 1.52
B19: 350 | H19: 1.761
